bitfinex/quotes_BTCUSD_20240101
["timestamp","ask_amount","ask_price","bid_price","bid_amount"]
[1704110622875,0.536469,42747.0,42740.0,0.04672]
[1704110623097,0.74668611,42747.0,42746.0,0.00526155]
[1704110623308,0.76968611,42747.0,42741.0,0.2365]
[1704110623520,0.023,42746.0,42741.0,0.2365]
[1704110623724,0.023,42746.0,42742.0,0.00527492]
[1704110624129,0.023,42746.0,42741.0,0.2365]
[1704110624584,0.023,42746.0,42742.0,0.00527492]
[1704110625776,0.025,42746.0,42742.0,0.00527492]
[1704110625995,0.026,42746.0,42742.0,0.00527492]
[1704110626606,0.023,42746.0,42742.0,0.00527492]
[1704110626801,0.028,42746.0,42742.0,0.00527492]
[1704110627409,0.025,42746.0,42742.0,0.00527492]
[1704110627608,0.028,42746.0,42742.0,0.00527492]
[1704110628012,0.005,42746.0,42742.0,0.00527492]
[1704110628219,0.005,42746.0,42743.0,0.04672]
[1704110628415,0.005,42746.0,42743.0,0.09726113]
[1704110628616,0.005,42746.0,42745.0,0.04672]
[1704110629024,0.30677,42753.0,42745.0,0.05141519]
[1704110629425,0.003,42746.0,42745.0,0.05141519]
[1704110629735,0.026,42746.0,42745.0,0.05141519]
[1704110630224,0.026,42746.0,42745.0,0.05341519]
[1704110630225,0.023,42746.0,42745.0,0.05341519]
[1704110630645,0.023,42746.0,42745.0,0.05641519]
[1704110630876,0.023,42746.0,42745.0,0.05141519]
[1704110631284,0.023,42746.0,42745.0,0.05275667]
[1704110632329,0.023,42746.0,42745.0,0.05375667]
[1704110632870,0.023,42746.0,42745.0,0.05275667]
[1704110633094,0.023,42746.0,42745.0,0.05475667]
[1704110633218,0.023,42746.0,42745.0,0.05775667]
[1704110633440,0.023,42746.0,42745.0,0.05575667]
[1704110633668,0.023,42746.0,42745.0,0.05775667]
[1704110633878,0.023,42746.0,42745.0,0.05475667]
[1704110634284,0.023,42746.0,42745.0,0.05775667]
[1704110634916,0.023,42746.0,42745.0,0.05275667]
[1704110635363,0.023,42746.0,42745.0,0.05475667]
[1704110635769,0.023,42746.0,42745.0,0.05275667]
[1704110635978,0.023,42746.0,42745.0,0.05475667]
[1704110636398,0.023,42746.0,42745.0,0.05775667]
[1704110636609,0.023,42746.0,42745.0,0.05575667]
[1704110636821,0.023,42746.0,42745.0,0.05775667]
[1704110637690,0.023,42746.0,42745.0,0.05475667]
[1704110637901,0.023,42746.0,42745.0,0.05675667]
[1704110638117,0.023,42746.0,42745.0,0.05275667]
[1704110638333,0.023,42746.0,42745.0,0.05375667]
[1704110638765,0.023,42746.0,42745.0,0.05275667]
[1704110639193,0.023,42746.0,42745.0,0.05475667]
[1704110639674,0.023,42746.0,42745.0,0.05775667]
[1704110641721,0.023,42746.0,42745.0,0.01103667]
[1704110641972,0.467841,42750.0,42745.0,0.01103667]
[1704110641973,0.023,42749.0,42745.0,0.01103667]
[1704110642716,0.023,42749.0,42745.0,0.00903667]
[1704110642952,0.023,42749.0,42745.0,0.01003667]
[1704110643197,0.023,42749.0,42745.0,0.00703667]
[1704110643434,0.023,42749.0,42745.0,0.00603667]
[1704110643718,0.025,42749.0,42745.0,0.00603667]
[1704110643936,0.023,42749.0,42745.0,0.00603667]
[1704110644190,0.025,42749.0,42745.0,0.00603667]
[1704110645196,0.028,42749.0,42745.0,0.00603667]
[1704110645384,0.465841,42750.0,42745.0,0.00603667]
[1704110645811,0.465841,42750.0,42744.0,0.27982]
[1704110646559,0.05602019,42751.0,42744.0,0.27982]
[1704110646971,0.467841,42750.0,42744.0,0.27982]
[1704110647404,0.467841,42750.0,42745.0,0.00598831]
[1704110647611,0.023,42749.0,42745.0,0.00598831]
[1704110650321,0.490841,42750.0,42745.0,0.00598831]
[1704110650535,0.490841,42750.0,42744.0,0.27982]
[1704110650752,0.490841,42750.0,42746.0,0.00598449]
[1704110650982,0.490841,42750.0,42745.0,0.00598831]
[1704110651200,0.490841,42750.0,42747.0,0.00598067]
[1704110651465,0.490841,42750.0,42746.0,0.00598449]
[1704110651668,0.023,42750.0,42748.0,0.00597685]
[1704110651884,0.07178,42750.0,42744.0,0.27982]
[1704110652092,0.12780019,42750.0,42749.0,0.00525107]
[1704110652309,0.490836,42750.0,42744.0,0.27982]
[1704110652575,0.467851,42749.0,42744.0,0.27982]
[1704110652785,0.023,42748.0,42745.0,0.00526444]
[1704110653238,0.023,42748.0,42744.0,0.27982]
[1704110653455,0.023,42748.0,42746.0,0.0052611]
[1704110653667,0.023,42748.0,42744.0,0.27982]
[1704110653898,0.023,42748.0,42747.0,0.00525776]
[1704110654112,0.023,42748.0,42744.0,0.27982]
[1704110654532,0.023,42748.0,42745.0,0.00526992]
[1704110654958,0.023,42748.0,42744.0,0.27982]
[1704110655373,0.023,42748.0,42745.0,0.00526992]
[1704110655848,0.023,42748.0,42736.0,0.76318702]
[1704110655849,0.023,42748.0,42739.0,0.04672]
[1704110656046,0.16279019,42746.0,42739.0,0.04672]
[1704110656365,0.23321711,42745.0,42739.0,0.04672]
[1704110656537,0.023,42744.0,42739.0,0.04672]
[1704110657011,0.023,42744.0,42734.0,0.04672]
[1704110657320,0.26714,42744.0,42734.0,0.04672]
[1704110657658,0.467917,42743.0,42734.0,0.04672]
[1704110657858,0.023,42742.0,42734.0,0.04672]
[1704110659029,0.023,42742.0,42734.0,0.04772]
[1704110659451,0.027,42742.0,42734.0,0.04672]
[1704110659816,0.033,42742.0,42734.0,0.04672]
[1704110661156,0.01,42742.0,42736.0,0.1]
[1704110661368,0.01,42742.0,42739.0,0.04672]
[1704110661757,0.01,42742.0,42738.0,0.467962]
[1704110661758,0.01,42742.0,42741.0,0.04672]
[1704110662000,0.004,42742.0,42741.0,0.04672]
[1704110662421,0.006,42742.0,42741.0,0.04672]
[1704110662865,0.004,42742.0,42741.0,0.04672]
[1704110663049,0.004,42742.0,42741.0,0.04772]
[1704110663257,0.474626,42749.0,42741.0,0.04772]
[1704110663468,0.023,42748.0,42741.0,0.04772]
[1704110663909,0.023,42748.0,42741.0,0.04672]
[1704110665742,0.023,42748.0,42741.0,0.04972]
[1704110665940,0.027,42748.0,42741.0,0.04672]
[1704110666353,0.033,42748.0,42741.0,0.04672]
[1704110670070,0.500858,42748.0,42741.0,0.04672]
[1704110670289,0.500858,42748.0,42742.0,0.05203176]
[1704110670717,0.500858,42748.0,42743.0,0.2378]
[1704110671151,0.496858,42748.0,42743.0,0.2378]
[1704110671357,0.500858,42748.0,42743.0,0.2378]
[1704110672008,0.484323,42748.0,42743.0,0.2378]
[1704110672221,0.494323,42748.0,42743.0,0.2378]
[1704110672430,0.467881,42746.0,42743.0,0.2378]
[1704110673785,0.020465,42748.0,42743.0,0.2378]
[1704110673786,0.467892,42745.0,42743.0,0.2378]
[1704110673994,0.467892,42745.0,42740.0,0.04672]
[1704110674210,0.023,42744.0,42740.0,0.04672]
[1704110675559,0.490903,42744.0,42740.0,0.04672]
[1704110676216,0.491903,42744.0,42740.0,0.04672]
[1704110677778,0.490903,42744.0,42740.0,0.04672]
[1704110678178,0.494903,42744.0,42740.0,0.04672]
[1704110678599,0.490903,42744.0,42740.0,0.04672]
[1704110679047,0.491903,42744.0,42740.0,0.04672]
[1704110679560,0.496903,42744.0,42740.0,0.04672]
[1704110679964,0.494903,42744.0,42740.0,0.04672]
[1704110680177,0.500903,42744.0,42740.0,0.04672]
[1704110681116,0.496903,42744.0,42740.0,0.04672]
[1704110681668,0.494903,42744.0,42740.0,0.04672]
[1704110682363,0.500903,42744.0,42740.0,0.04672]
[1704110683702,0.033,42744.0,42740.0,0.04672]
[1704110684117,0.500908,42744.0,42740.0,0.04672]
[1704110689138,0.500908,42744.0,42737.0,0.04672]
[1704110689359,0.500908,42744.0,42737.0,0.28262]
[1704110689971,0.494908,42744.0,42737.0,0.28262]
[1704110690629,0.490908,42744.0,42737.0,0.28262]
[1704110690839,0.494908,42744.0,42737.0,0.28262]
[1704110691407,0.500908,42744.0,42737.0,0.28262]
[1704110712326,0.033,42744.0,42737.0,0.28262]
[1704110713177,0.033,42744.0,42737.0,0.750593]
[1704110716813,0.029,42744.0,42737.0,0.750593]
[1704110717409,0.05514505,42746.0,42737.0,0.750593]
[1704110717845,0.05514505,42746.0,42739.0,0.1]
[1704110718057,0.11162537,42751.0,42745.0,0.467884]
[1704110718264,0.0274078,42751.0,42746.0,0.04672]
[1704110718468,0.17789957,42753.0,42746.0,0.27112]
[1704110718685,0.3,42752.0,42746.0,0.27112]
[1704110719113,0.3,42752.0,42746.0,0.04672]
[1704110719317,0.02872324,42753.0,42746.0,0.04672]
[1704110719547,0.023,42752.0,42748.0,0.04672]
[1704110722190,0.027,42752.0,42748.0,0.04672]
[1704110725604,0.027,42752.0,42749.0,0.00821788]
[1704110725808,0.027,42752.0,42748.0,0.04672]
[1704110727378,0.023,42752.0,42748.0,0.04672]
[1704110727607,0.027,42752.0,42748.0,0.04672]
[1704110727939,0.023,42752.0,42748.0,0.04672]
[1704110728354,0.027,42752.0,42748.0,0.04672]
[1704110741997,0.023,42752.0,42748.0,0.04672]
[1704110743275,0.027,42752.0,42748.0,0.04672]
[1704110744352,0.023,42752.0,42748.0,0.04672]
[1704110744596,0.027,42752.0,42748.0,0.04672]
[1704110744806,0.027,42752.0,42743.0,0.04672]
[1704110745056,0.027,42752.0,42743.0,0.27892]
[1704110745312,0.027,42752.0,42744.0,0.01359735]
[1704110745549,0.467837,42750.0,42745.0,0.04672]
[1704110745757,0.023,42749.0,42745.0,0.04672]
[1704110745982,0.023,42749.0,42746.0,0.24238464]
[1704110746217,0.023,42749.0,42746.0,0.24577952]
[1704110746445,0.023,42749.0,42746.0,0.24238464]
[1704110746680,0.023,42749.0,42746.0,0.24577952]
[1704110747130,0.023,42749.0,42746.0,0.24238464]
[1704110747348,0.023,42749.0,42746.0,0.24577952]
[1704110747589,0.023,42749.0,42746.0,0.24777952]
[1704110747818,0.023,42749.0,42746.0,0.24438464]
[1704110748312,0.023,42749.0,42746.0,0.01218464]
[1704110748760,0.023,42749.0,42746.0,0.01557952]
[1704110748969,0.023,42749.0,42746.0,0.002]
[1704110749179,0.023,42749.0,42746.0,0.01218464]
[1704110749387,0.023,42749.0,42746.0,0.002]
[1704110749602,0.027,42749.0,42746.0,0.01357952]
[1704110749821,0.027,42749.0,42742.0,0.04672]
[1704110749962,0.023,42749.0,42746.0,0.01018464]
[1704110750197,0.023,42749.0,42746.0,0.01357952]
[1704110750372,0.027,42749.0,42742.0,0.04672]
[1704110750576,0.027,42749.0,42746.0,0.01018464]
[1704110750824,0.023,42749.0,42742.0,0.04672]
[1704110750998,0.027,42749.0,42746.0,0.01018464]
[1704110751563,0.027,42749.0,42742.0,0.04672]
[1704110751796,0.027,42749.0,42747.0,0.01023795]
[1704110751923,0.027,42749.0,42742.0,0.04672]
[1704110752166,0.027,42749.0,42743.0,0.05698469]
[1704110752367,0.474658,42746.0,42743.0,0.01026469]
[1704110752591,0.490901,42745.0,42743.0,0.01026469]
[1704110752807,0.467901,42744.0,42740.0,0.8828]
[1704110753021,0.023,42743.0,42740.0,0.6571]
[1704110753236,0.023,42743.0,42739.0,0.04672]
[1704110754712,0.027,42743.0,42739.0,0.04672]
[1704110755947,0.023,42743.0,42739.0,0.04672]
[1704110756150,0.027,42743.0,42739.0,0.04672]
[1704110760089,0.027,42743.0,42740.0,0.00829582]
[1704110761946,0.023,42743.0,42740.0,0.00829582]
[1704110762091,0.027,42743.0,42740.0,0.00829582]
[1704110764641,0.027,42743.0,42739.0,0.04672]
[1704110764772,0.027,42743.0,42741.0,0.00828494]
[1704110765169,0.027,42743.0,42739.0,0.04672]
[1704110765371,0.027,42743.0,42742.0,0.00827959]
[1704110765571,0.023,42743.0,42739.0,0.04672]
[1704110765893,0.023,42743.0,42742.0,0.00827959]
[1704110766129,0.027,42743.0,42740.0,0.00829029]
[1704110766352,0.023,42743.0,42742.0,0.00827959]
[1704110766656,0.05134871,42743.0,42741.0,0.00828494]
[1704110766764,0.05534871,42743.0,42742.0,0.00827959]
[1704110767007,0.027,42743.0,42742.0,0.00827959]
[1704110767202,0.023,42743.0,42739.0,0.04672]
[1704110767423,0.023,42743.0,42742.0,0.00827959]
[1704110767641,0.023,42743.0,42739.0,0.04672]
[1704110767851,0.023,42743.0,42740.0,0.00829029]
[1704110768075,0.023,42743.0,42742.0,0.00827959]
[1704110768326,0.92412911,42743.0,42741.0,0.23078494]
[1704110768565,0.92412911,42743.0,42737.0,0.04672]
[1704110768566,0.70114011,42742.0,42737.0,0.04672]
[1704110768815,0.2,42735.0,42733.0,0.04672]
[1704110769050,0.25621711,42734.0,42733.0,0.04672]
[1704110769298,0.25621711,42734.0,42725.0,0.468105]
[1704110769299,0.1,42727.0,42725.0,0.468105]
[1704110769525,0.1,42727.0,42723.0,0.30162]
[1704110769526,0.70131611,42726.0,42723.0,0.30162]
[1704110769737,0.72431611,42726.0,42723.0,0.07882]
[1704110771320,0.72431611,42726.0,42723.0,0.02882]
[1704110771756,0.72431611,42726.0,42725.0,0.001]
[1704110771975,0.73431611,42726.0,42724.0,0.02982]
[1704110772414,0.72931611,42726.0,42724.0,0.02982]
[1704110772631,0.72431611,42726.0,42724.0,0.02882]
[1704110772864,0.73931611,42726.0,42725.0,0.001]
[1704110773095,0.73431611,42726.0,42724.0,0.02982]
[1704110773312,0.25621711,42726.0,42724.0,0.02882]
[1704110773563,0.27121711,42726.0,42724.0,0.03082]
[1704110774732,0.31627711,42726.0,42724.0,0.03082]
[1704110775163,0.31127711,42726.0,42725.0,0.00526545]
[1704110775381,0.30127711,42726.0,42725.0,0.00526545]
[1704110775586,0.31627711,42726.0,42725.0,0.00626545]
[1704110775796,0.31127711,42726.0,42725.0,0.00526545]
[1704110776230,0.30627711,42726.0,42725.0,0.00526545]
[1704110776444,0.31627711,42726.0,42725.0,0.00626545]
[1704110776759,0.31627711,42726.0,42725.0,0.001]
[1704110776920,0.31127711,42726.0,42725.0,0.001]
[1704110778289,0.31627711,42726.0,42725.0,0.002]
[1704110778777,0.27121711,42726.0,42725.0,0.002]
[1704110779502,0.80423611,42726.0,42725.0,0.002]
[1704110779723,1.10423611,42726.0,42725.0,0.002]
[1704110782051,1.08527611,42726.0,42725.0,0.002]
[1704110782287,0.038,42726.0,42725.0,0.002]
[1704110783002,0.015,42726.0,42725.0,0.00805962]
[1704110783262,0.005,42726.0,42725.0,0.00705962]
[1704110783475,0.005,42726.0,42725.0,0.00805962]
[1704110783476,0.014,42726.0,42725.0,0.00805962]
[1704110784440,0.009,42726.0,42725.0,0.00705962]
[1704110784868,0.003,42726.0,42725.0,0.00605962]
[1704110785083,0.026,42726.0,42725.0,0.00605962]
[1704110785939,0.031,42726.0,42725.0,0.00605962]
[1704110786149,0.028,42726.0,42725.0,0.00605962]
[1704110786371,0.031,42726.0,42725.0,0.00605962]
[1704110786801,0.026,42726.0,42725.0,0.00605962]
[1704110787667,0.023,42726.0,42725.0,0.00605962]
[1704110787872,0.023,42728.0,42725.0,0.00605962]
[1704110788084,0.003,42726.0,42725.0,0.00605962]
[1704110788302,0.031,42726.0,42725.0,0.00605962]
[1704110788728,0.023,42726.0,42725.0,0.00605962]
[1704110789658,0.026,42726.0,42725.0,0.00605962]
[1704110789865,0.031,42726.0,42725.0,0.00605962]
[1704110791176,0.008,42726.0,42725.0,0.05277962]
[1704110791378,0.008,42726.0,42725.0,0.09837962]
[1704110791591,0.008,42726.0,42725.0,0.52088962]
[1704110791804,0.003,42726.0,42725.0,0.52088962]
[1704110792017,0.777984,42737.0,42725.0,0.52088962]
[1704110792225,0.005,42726.0,42725.0,0.05277962]
[1704110792434,0.005,42726.0,42725.0,0.52088962]
[1704110792650,0.003,42726.0,42725.0,0.52088962]
[1704110792857,0.003,42726.0,42725.0,0.52788962]
[1704110793071,0.3,42735.0,42725.0,0.52788962]
[1704110793283,0.023,42734.0,42727.0,0.04672]
[1704110793514,0.33321711,42733.0,42727.0,0.04672]
[1704110793729,0.023,42732.0,42727.0,0.04672]
[1704110793953,0.25621711,42732.0,42728.0,0.00531681]
[1704110794174,0.30205711,42732.0,42728.0,0.00531681]
[1704110794380,0.25621711,42732.0,42728.0,0.00531681]
[1704110794831,0.25621711,42732.0,42725.0,0.05172]
[1704110795061,0.04554,42731.0,42729.0,0.00531346]
[1704110795284,0.023,42730.0,42725.0,0.05172]
[1704110795727,0.023,42730.0,42726.0,0.0053235]
[1704110796200,0.023,42731.0,42726.0,0.0053235]
[1704110796712,0.0722,42731.0,42726.0,0.0053235]
[1704110796959,0.0722,42731.0,42728.0,0.001]
[1704110797307,0.0752,42731.0,42728.0,0.001]
[1704110797442,0.0722,42731.0,42728.0,0.001]
[1704110797868,0.04536,42730.0,42728.0,0.001]
[1704110798081,0.023,42729.0,42724.0,0.02882]
[1704110798497,0.023,42730.0,42725.0,0.00534319]
[1704110798905,0.027,42730.0,42725.0,0.00534319]
[1704110799119,0.033,42730.0,42720.0,0.514883]
[1704110799324,0.033,42730.0,42722.0,0.00535323]
[1704110799536,0.027,42730.0,42722.0,0.00535323]
[1704110799948,0.033,42730.0,42722.0,0.00535323]
[1704110800167,0.029,42730.0,42722.0,0.00535323]
[1704110801047,0.033,42730.0,42722.0,0.00535323]
[1704110801743,0.027,42730.0,42722.0,0.00535323]
[1704110801957,0.0723,42730.0,42722.0,0.00535323]
[1704110802206,0.83427311,42730.0,42722.0,0.00535323]
[1704110802440,0.37845711,42729.0,42722.0,0.00535323]
[1704110802653,0.023,42728.0,42722.0,0.00535323]
[1704110802868,0.538782,42728.0,42722.0,0.00535323]
[1704110803083,0.468089,42727.0,42722.0,0.00535323]
[1704110803293,0.023,42726.0,42722.0,0.00535323]
[1704110803911,0.491099,42726.0,42722.0,0.00535323]
[1704110805005,0.491099,42726.0,42723.0,0.236]
[1704110805431,0.494099,42726.0,42724.0,0.00534473]
[1704110806520,0.491099,42726.0,42724.0,0.00534473]
[1704110806729,0.496099,42726.0,42724.0,0.00534473]
[1704110806938,0.499099,42726.0,42724.0,0.00534473]
[1704110807156,0.496099,42726.0,42724.0,0.00534473]
[1704110807599,0.499099,42726.0,42724.0,0.00534473]
[1704110808450,0.494099,42726.0,42724.0,0.00534473]
[1704110808710,0.499099,42726.0,42724.0,0.00534473]
[1704110809309,0.80132711,42725.0,42724.0,0.00534473]
[1704110809536,0.87226711,42725.0,42721.0,0.2377]
[1704110809734,0.491123,42724.0,42722.0,0.00535278]
[1704110809926,0.491123,42724.0,42721.0,0.004]
[1704110810127,0.491123,42724.0,42722.0,0.00535278]
[1704110810509,0.536363,42724.0,42722.0,0.00535278]
[1704110811142,0.86958011,42724.0,42722.0,0.00535278]
[1704110811513,0.86958011,42724.0,42721.0,0.004]
[1704110811681,0.86958011,42724.0,42722.0,0.00535278]
[1704110811887,0.86958011,42724.0,42721.0,0.004]
[1704110812096,0.86958811,42724.0,42722.0,0.00535278]
[1704110812302,0.86958811,42724.0,42721.0,0.004]
[1704110812563,0.86958811,42724.0,42722.0,0.00535278]
[1704110812965,0.87158811,42724.0,42721.0,0.004]
[1704110813392,0.87158811,42724.0,42722.0,0.0053724]
[1704110813809,0.70134811,42723.0,42721.0,0.004]
[1704110814024,0.023,42722.0,42721.0,0.004]
[1704110815072,0.023,42722.0,42721.0,0.005]
[1704110815718,0.023,42722.0,42721.0,0.004]
[1704110815939,0.029,42722.0,42721.0,0.004]
[1704110817060,0.033,42722.0,42721.0,0.004]
[1704110818795,0.501142,42722.0,42721.0,0.004]
[1704110819415,0.546262,42722.0,42721.0,0.004]
[1704110820282,0.501142,42722.0,42721.0,0.00937574]
[1704110824575,0.033,42722.0,42721.0,0.00937574]
[1704110825840,0.027,42722.0,42721.0,0.00937574]
[1704110826054,0.023,42722.0,42721.0,0.00937574]
[1704110826269,0.008,42722.0,42721.0,0.00937574]
[1704110826687,0.025,42722.0,42721.0,0.00937574]
[1704110827467,0.002,42722.0,42721.0,0.00937574]
[1704110827667,0.025,42722.0,42721.0,0.00937574]
[1704110828214,0.002,42722.0,42721.0,0.00937574]
[1704110828438,0.005,42722.0,42721.0,0.00937574]
[1704110828888,0.028,42722.0,42721.0,0.00937574]
[1704110829529,0.566097,42727.0,42721.0,0.00937574]
[1704110829748,0.4681,42726.0,42721.0,0.00937574]
[1704110831021,0.4711,42726.0,42721.0,0.00937574]
[1704110831499,0.4711,42726.0,42721.0,0.01037574]
[1704110831714,0.023,42725.0,42721.0,0.01037574]
[1704110831925,0.023,42725.0,42721.0,0.00937574]
[1704110832138,0.023,42725.0,42721.0,0.01037574]
[1704110832801,0.023,42725.0,42721.0,0.00937574]
[1704110833029,0.033,42725.0,42721.0,0.00937574]
[1704110834802,0.50111,42725.0,42721.0,0.00937574]
[1704110835265,0.49411,42725.0,42721.0,0.00937574]
[1704110835479,0.49811,42725.0,42721.0,0.00937574]
[1704110835720,0.50111,42725.0,42721.0,0.00937574]
[1704110838253,0.033,42725.0,42721.0,0.00937574]
[1704110838474,0.50111,42725.0,42721.0,0.00937574]
[1704110838681,0.50111,42725.0,42721.0,0.004]
[1704110838899,0.50111,42725.0,42722.0,0.00536495]
[1704110839330,0.50111,42725.0,42723.0,0.2214]
[1704110839808,0.50111,42725.0,42724.0,0.00535826]
[1704110840018,0.49811,42725.0,42724.0,0.00535826]
[1704110840483,0.50111,42725.0,42724.0,0.00535826]
[1704110840703,0.49411,42725.0,42724.0,0.00535826]
[1704110841099,0.50111,42725.0,42724.0,0.00535826]
[1704110841325,0.55713963,42725.0,42724.0,0.00535826]
[1704110841550,0.55013963,42725.0,42724.0,0.00535826]
[1704110841964,0.55713963,42725.0,42724.0,0.00535826]
[1704110842175,0.55713963,42725.0,42723.0,0.2214]
[1704110842602,0.55413963,42725.0,42723.0,0.2214]
[1704110842823,0.55713963,42725.0,42723.0,0.2214]
[1704110843041,0.55413963,42725.0,42723.0,0.2214]
[1704110843490,0.55713963,42725.0,42723.0,0.2214]
[1704110843933,0.55013963,42725.0,42723.0,0.2214]
[1704110844155,0.55713963,42725.0,42723.0,0.2214]
[1704110847353,0.05602963,42724.0,42723.0,0.2214]
[1704110847562,0.07902963,42724.0,42723.0,0.2214]
[1704110848433,0.08502963,42724.0,42723.0,0.2214]
[1704110848640,0.08802963,42724.0,42723.0,0.2214]
[1704110849277,0.58416444,42724.0,42723.0,0.2214]
[1704110849495,0.1,42723.0,42721.0,0.004]
[1704110849717,0.491142,42722.0,42721.0,0.004]
[1704110849936,0.541242,42722.0,42721.0,0.004]
[1704110851085,0.77445911,42722.0,42721.0,0.004]
[1704110851304,1.18445911,42722.0,42721.0,0.004]
[1704110851522,1.18745911,42722.0,42721.0,0.004]
[1704110851952,1.32897587,42722.0,42721.0,0.004]
[1704110852171,1.30087053,42722.0,42721.0,0.004]
[1704110852834,1.18845911,42722.0,42721.0,0.004]
[1704110853040,1.32897587,42722.0,42721.0,0.004]
[1704110853493,1.18845911,42722.0,42721.0,0.004]
[1704110854344,1.32897587,42722.0,42721.0,0.004]
[1704110854797,1.4130087,42722.0,42721.0,0.004]
[1704110855005,1.21329911,42722.0,42721.0,0.004]
[1704110855495,1.41329911,42722.0,42721.0,0.004]
[1704110856364,1.41029911,42722.0,42721.0,0.004]
[1704110856574,1.42329911,42722.0,42721.0,0.005]
[1704110857218,1.41029911,42722.0,42721.0,0.004]
[1704110857651,0.94115711,42722.0,42721.0,0.004]
[1704110857859,1.40929911,42722.0,42721.0,0.004]
[1704110858049,1.41329911,42722.0,42721.0,0.005]
[1704110858262,1.42229911,42722.0,42721.0,0.005]
[1704110858521,1.42629911,42722.0,42721.0,0.006]
[1704110859614,1.41329911,42722.0,42721.0,0.005]
[1704110860028,1.41329911,42722.0,42721.0,0.006]
[1704110860029,1.53858726,42722.0,42721.0,0.006]
[1704110860448,1.56666365,42722.0,42721.0,0.006]
[1704110861307,1.42629911,42722.0,42721.0,0.006]
[1704110861511,1.45384324,42722.0,42721.0,0.006]
[1704110862164,1.56610708,42722.0,42721.0,0.006]
[1704110865674,1.59420778,42722.0,42721.0,0.006]
[1704110867124,1.58420778,42722.0,42721.0,0.006]
[1704110867302,1.59420778,42722.0,42721.0,0.006]
[1704110867700,1.45384324,42722.0,42721.0,0.006]
[1704110868464,1.44384324,42722.0,42721.0,0.006]
[1704110868687,1.56605953,42722.0,42721.0,0.006]
[1704110869700,1.92198524,42722.0,42721.0,0.006]
[1704110869916,2.15360978,42722.0,42721.0,0.006]
[1704110870530,2.04690524,42722.0,42721.0,0.006]
[1704110870942,2.04690524,42722.0,42712.0,0.05]
[1704110870943,0.11,42713.0,42712.0,0.05]
[1704110871146,0.11,42713.0,42710.0,0.02882]
[1704110871147,0.01,42712.0,42711.0,0.2321]
[1704110871488,0.01,42712.0,42710.0,0.02882]
[1704110871489,0.21,42711.0,42710.0,0.02882]
[1704110871689,0.74321711,42711.0,42710.0,0.02882]
[1704110871896,1.30072011,42711.0,42710.0,0.02882]
[1704110872104,0.83245711,42711.0,42710.0,0.02882]
[1704110872474,1.30072011,42711.0,42710.0,0.02882]
[1704110872839,1.31272011,42711.0,42710.0,0.02982]
[1704110873172,1.30072011,42711.0,42710.0,0.02882]
[1704110873849,1.31272011,42711.0,42710.0,0.02982]
[1704110874474,1.61842652,42711.0,42710.0,0.03082]
[1704110875289,1.15016352,42711.0,42710.0,0.03082]
[1704110875442,0.95645711,42711.0,42710.0,0.03082]
[1704110875648,1.42472011,42711.0,42710.0,0.03082]
[1704110876056,1.48082308,42711.0,42710.0,0.03082]
[1704110877816,2.18082308,42711.0,42710.0,0.03082]
[1704110878247,2.12472011,42711.0,42710.0,0.03082]
[1704110878451,2.59298311,42711.0,42710.0,0.03082]
[1704110879138,2.78665303,42711.0,42710.0,0.03082]
[1704110879316,2.73055006,42711.0,42710.0,0.03082]
[1704110880103,2.78665303,42711.0,42710.0,0.03082]
[1704110880277,2.78665303,42711.0,42710.0,0.002]
[1704110880880,2.64908608,42711.0,42710.0,0.002]
[1704110881096,2.59298311,42711.0,42710.0,0.002]
[1704110883145,2.62151317,42711.0,42710.0,0.002]
[1704110884253,2.05325017,42711.0,42710.0,0.002]
[1704110884471,0.82079306,42711.0,42710.0,0.002]
[1704110885147,0.80879306,42711.0,42710.0,0.001]
[1704110885366,0.80879306,42711.0,42708.0,0.2355]
[1704110885367,0.79679306,42711.0,42708.0,0.2355]
[1704110885572,0.80879306,42711.0,42710.0,0.001]
[1704110885785,0.81979306,42711.0,42710.0,0.00495117]
[1704110886006,0.81979306,42711.0,42708.0,0.2355]
[1704110886275,0.83279306,42711.0,42710.0,0.001]
[1704110886506,0.83879306,42711.0,42710.0,0.001]
[1704110886717,0.82579306,42711.0,42708.0,0.2355]
[1704110886929,0.82579306,42711.0,42710.0,0.001]
[1704110886930,0.83279306,42711.0,42710.0,0.001]
[1704110887997,0.03553006,42711.0,42710.0,0.001]
[1704110888211,0.03553006,42711.0,42710.0,0.00656164]
[1704110888433,0.006,42711.0,42708.0,0.2355]
[1704110888638,0.3,42713.0,42710.0,0.00556164]
[1704110888922,0.3,42713.0,42708.0,0.2355]
[1704110889137,0.3,42713.0,42708.0,0.2365]
[1704110889562,0.3,42713.0,42709.0,0.00556499]
[1704110889772,0.309,42713.0,42710.0,0.001]
[1704110889998,0.309,42713.0,42711.0,0.00555829]
[1704110889999,0.319,42713.0,42711.0,0.00555829]
[1704110890426,0.319,42713.0,42712.0,0.2338]
[1704110890829,0.319,42713.0,42712.0,0.23935494]
[1704110891055,0.31,42713.0,42712.0,0.23935494]
[1704110891300,0.309,42713.0,42712.0,0.23935494]
[1704110891728,0.319,42713.0,42712.0,0.23935494]
[1704110892139,0.3,42713.0,42712.0,0.23935494]
[1704110892409,0.309,42713.0,42712.0,0.24035494]
[1704110892752,0.319,42713.0,42712.0,0.24135494]
[1704110893491,0.019,42713.0,42712.0,0.24135494]
[1704110894710,0.01,42713.0,42712.0,0.24035494]
[1704110895141,0.006,42713.0,42712.0,0.23935494]